Cogmind - Beta 14 @@@ ROGUE MODE // 2024.09.08 @ 17:47:42 Player: Dull Result: Destroyed by BC-KVJ(R) with Subdweller Machine Gun Performance ------------- Evolutions (0) 0 Regions Visited (3) 600 Robots Destroyed (23) 115 Value Destroyed (643) 643 Prototype IDs (1) 20 Alien Tech Used (0) 0 Bonus (-13) -13 TOTAL SCORE: 1365 Bonus ------- Follower Combat Kills 7 Friendly Fire -20 Cogmind --------- Core Integrity 0/250 Matter 246/300 Energy 150/150 System Corruption 0% Temperature Cool (0) Movement Walking (200) Ox1 Location -10/Subcaves Parts ------- > --- POWER (1) -------- Light Angular Momentum Engine > --- PROPULSION (2) --- Aluminum Leg Makeshift Leg > --- UTILITY (2) ------ Large Storage Unit Experimental Sensor Array > --- WEAPON (2) ------- Light Cannon Grenade Launcher > --- INVENTORY (15) --- Light Nuclear Core Light Angular Momentum Engine Aluminum Leg Aluminum Leg Carbon-fiber Leg Carbon-fiber Leg Improved Heat Sink Medium Matter Pod (100) Scrap Shield Beamcaster Light Cannon Light Cannon Light Cannon Makeshift Sword Peak State ------------ > --- POWER ------------ Light Angular Momentum Engine > --- PROPULSION ------- Aluminum Leg Makeshift Leg > --- UTILITY ---------- Large Storage Unit Experimental Sensor Array > --- WEAPON ----------- Beamcaster Light Cannon > --- INVENTORY -------- Ion Engine Ion Engine Light Nuclear Core Aluminum Leg Aluminum Leg Carbon-fiber Leg Carbon-fiber Leg Medium Matter Pod Scrap Shield Light Cannon Light Cannon Light Cannon Grenade Launcher Welding Torch [Rating: 28] Favorites ----------- Power Light Angular Momentum Engine Engine Light Angular Momentum Engine Propulsion Aluminum Leg Treads Light Treads Leg Aluminum Leg Utility Large Storage Unit Device Experimental Sensor Array Storage Large Storage Unit Protection Power Shielding Weapon Grenade Launcher Energy Gun Beamcaster Ballistic Gun Assault Rifle Ballistic Cannon Light Cannon Launcher Grenade Launcher Build | -11 -10 -10 -10 ------- Run | Yrd Mat Min Sub Slots Evolved . | . . . . Power . | . . . . Propulsion . | . . . . Utility . | . . . . Weapon . | . . . . Parts Attached 38 | 10 12 11 5 Power 6 | 1 2 1 2 Engine 6 | 1 2 1 2 Core . | . . . . Reactor . | . . . . Propulsion 18 | 6 6 5 1 Treads 4 | 3 1 . . Leg 14 | 3 5 5 1 Wheel . | . . . . Hover . | . . . . Flight . | . . . . Utility 5 | 1 2 2 . Device 2 | . 1 1 . Storage 2 | 1 1 . . Processor . | . . . . Hackware . | . . . . Protection 1 | . . 1 . Artifact . | . . . . Weapon 9 | 2 2 3 2 Energy Gun 3 | 1 1 1 . Energy Cannon . | . . . . Ballistic Gun 3 | 1 1 1 . Ballistic Cannon 1 | . . . 1 Launcher 2 | . . 1 1 Special Weapon . | . . . . Impact Weapon . | . . . . Slashing Weapon . | . . . . Piercing Weapon . | . . . . Special Melee Weapon . | . . . . Unidentified Prototypes 1 | . . 1 . Parts Lost 1 | . . 1 . Power . | . . . . Propulsion . | . . . . Utility 1 | . . 1 . Weapon . | . . . . Highest Loss Streak 1 | . . 1 . To Critical Strikes . | . . . . Average Slot Usage (%) 99 | . 99 100 100 Engine 14 | . 14 14 14 Treads 1 | . 8 . . Leg 26 | . 19 28 28 Device 12 | . 13 11 14 Storage 14 | . 14 14 14 Energy Gun 7 | . 14 14 . Ballistic Gun 5 | . 14 7 . Ballistic Cannon 6 | . . . 13 Launcher 8 | . . 6 13 Peak Build Rating 28 | 6 9 26 28 Average Rating 19 | 4 7 20 24 On Entrance 10 | . 6 9 25 Naked Turns . | . . . . Heaviest Build 38 | 14 31 38 38 Greatest Support 40 | 20 40 25 30 Greatest Overweight (x) 1 | 1 1 1 1 Average Overweight (x) . | . . 1 1 Largest Inventory Capacity 15 | 8 15 15 15 Average Capacity 14 | 7 11 15 15 Most Carried 15 | 5 15 15 15 Average Carried 13 | 2 9 14 14 Final Capacity 15 | 8 15 15 15 Final Carried 15 | 4 15 15 15 Class Distribution -------------------- 78% | Mutant 21% | Scavenger-Mutant Dominant Class ---------------- Mutant | -10/Materials Scavenger-Mutant | -10/Mines Mutant | -10/Subcaves Resources | -11 -10 -10 -10 ----------- Run | Yrd Mat Min Sub Matter Collected 929 | 176 399 234 120 Remotely . | . . . . Salvage Created 735 | . 517 124 94 Parts 39 | . 29 6 4 Haulers Intercepted . | . . . . Recyclers Shooed 1 | . . 1 . Parts Field Recycled . | . . . . Retrieved Matter . | . . . . Parts Self-Destructed 8 | . . . 8 Prevented . | . . . . Kills | -11 -10 -10 -10 ------- Run | Yrd Mat Min Sub Combat Hostiles Destroyed 25 | . 12 9 4 Guns 17 | . 12 5 . Cannons 1 | . . . 1 AOE 7 | . . 4 3 Classes Destroyed 7 | . 4 2 1 Worker 1 | . . 1 . Recycler 1 | . 1 . . Watcher 1 | . 1 . . Swarmer 5 | . 3 2 . Grunt 11 | . 9 2 . Subdweller 4 | . . . 4 Assembled 5 | . . 5 . Best Kill Streak 6 | . 6 5 1 Combat Bots Only 5 | . 5 5 1 Max Kills in Single Turn 2 | . 2 2 1 Gunslinging 1 | . 1 . . Exploded 2 | . . 2 1 Melee . | . . . . Uniques/NPCs Destroyed . | . . . . Combat | -11 -10 -10 -10 -------- Run | Yrd Mat Min Sub Hostile Shots Fired 119 | . 77 27 15 Missed 28 | . 18 7 3 Damage Taken 1132 | . 626 250 256 Core 266 | . 142 81 43 Absorbed by Shields . | . . . . Core Remaining (%) 100 | 100 . . . Volleys Fired 67 | . 38 18 11 Largest 2 | . 2 2 2 Hottest 110 | . 85 105 110 Shots Fired 133 | . 76 35 22 Gun 111 | . 76 32 3 Cannon 11 | . . . 11 Launcher 11 | . . 3 8 Special . | . . . . Kinetic 63 | . 38 14 11 Thermal 59 | . 38 18 3 Explosive 11 | . . 3 8 Electromagnetic . | . . . . Robot Hit Streak 14 | . 11 5 14 Robot Miss Streak 2 | . 2 2 2 Penetration Max . | . . . . Secondary Targets 3 | . 3 . . Max Gunslinging Chain 1 | . 1 . . Shots Hit Robots 89 | . 56 16 17 Core Hits 46 | . 23 15 8 Critical Kills . | . . . . Critical Parts Destroyed 1 | . 1 . . Critical Strikes 5 | . 4 1 . Burn 4 | . 3 1 . Destroy 1 | . 1 . . Melee Attacks . | . . . . Impact . | . . . . Slashing . | . . . . Piercing . | . . . . Sneak Attacks . | . . . . Combat Hostiles . | . . . . Follow-up Attacks . | . . . . Damage Inflicted 1663 | . 720 343 600 Guns 1002 | . 720 242 40 Cannons 133 | . . . 133 Explosions 527 | . . 100 427 Melee . | . . . . Ramming 1 | . . 1 . Kinetic 592 | . 369 90 133 Thermal 543 | . 351 152 40 Explosive 527 | . . 100 427 Electromagnetic . | . . . . Impact . | . . . . Slashing . | . . . . Piercing . | . . . . Highest Corruption . | . . . . Average Corruption . | . . . . Corruption Purged . | . . . . Corruption Blocked . | . . . . Overload Shots . | . . . . Overflow Damage 6 | . . . 6 Projectiles 6 | . . . 6 Explosions . | . . . . Melee . | . . . . Knockbacks . | . . . . Impact . | . . . . Kinetic . | . . . . Secondary . | . . . . Self-Inflicted Damage 41 | . . . 41 Shots 2 | . . . 2 Rammed . | . . . . Targets Rammed 1 | . . 1 . Kicked 1 | . . 1 . Crushed . | . . . . Highest Temperature 291 | . 164 291 . Average Temperature 59 | . 45 83 . Received Heat Transfer 423 | . 279 117 27 Siege Activations . | . . . . Robots Corrupted . | . . . . Combat Hostiles . | . . . . Parts Fried . | . . . . Impact Corruptions . | . . . . Robots Melted . | . . . . Combat Hostiles . | . . . . Parts Melted 1 | . 1 . . Heat Transferred 1702 | . 1221 407 74 Parts Sabotaged . | . . . . Parts Stolen . | . . . . Parts Stripped . | . . . . Power Chain Reactions . | . . . . Alert | -11 -10 -10 -10 ------- Run | Yrd Mat Min Sub Peak Influence 202 | . 202 133 . Initial 78 | . . 78 . Average 56 | . 66 53 . Maximum Alert Level 1 | . 1 . . Low Security (%) 96 | 100 91 100 . Level 1 3 | . 8 . . Level 2 . | . . . . Level 3 . | . . . . Level 4 . | . . . . Level 5 . | . . . . High Security . | . . . . Max Security . | . . . . Squads Dispatched 2 | . 2 . . Investigation 2 | . 2 . . Extermination . | . . . . Reinforcement . | . . . . Assault . | . . . . Garrison . | . . . . Intercept . | . . . . Searches Triggered . | . . . . Construction Impeded . | . . . . Haulers Reinforced . | . . . . Active Scanning Responses . | . . . . Cargo Convoy Interrupts . | . . . . Stealth | -11 -10 -10 -10 --------- Run | Yrd Mat Min Sub Distress Signals 3 | . 3 . . Communications Jammed . | . . . . Distress Signals . | . . . . Times Spotted 45 | . 18 13 14 Peak Tracking Total 6 | . 6 3 6 Tactical Retreats 2 | . . 2 . Traps | -11 -10 -10 -10 ------- Run | Yrd Mat Min Sub Traps Triggered 1 | . 1 . . Indirectly . | . . . . Trap Hack Attempts . | . . . . Triggered . | . . . . Disarmed . | . . . . Reprogrammed . | . . . . Reused . | . . . . Traps Extracted . | . . . . Installed . | . . . . Triggered . | . . . . Machines | -11 -10 -10 -10 ---------- Run | Yrd Mat Min Sub Machines Disabled 1 | . . 1 . Max in Single Turn 1 | . . 1 . Machines Repaired . | . . . . Machines Dismantled . | . . . . Machines Sabotaged . | . . . . Overloaded Fab Kills . | . . . . Hacking | -11 -10 -10 -10 --------- Run | Yrd Mat Min Sub Machines Accessed 3 | . 1 1 1 Terminals 2 | . 1 1 . Fabricators . | . . . . Repair Stations . | . . . . Recycling Units . | . . . . Scanalyzers . | . . . . Garrison Access . | . . . . Total Hacks 9 | . 2 4 3 Successful 5 | . 1 1 3 Failed 4 | . 1 3 . Catastrophic . | . . . . Database Lockouts . | . . . . Manual 9 | . 3 5 1 Terminals 6 | . 2 4 . Fabricators . | . . . . Repair Stations . | . . . . Recycling Units . | . . . . Scanalyzers . | . . . . Garrison Access . | . . . . Terminal Hacks 4 | . 1 . 3 Record 3 | . . . 3 Part Schematic 1 | . 1 . . Fabricator Hacks . | . . . . Repair Station Hacks . | . . . . Recycling Unit Hacks . | . . . . Scanalyzer . | . . . . Garrison Access Hacks . | . . . . Unauthorized Hacks 1 | . . 1 . Terminals 1 | . . 1 . Assimilate 1 | . . 1 . Fabricators . | . . . . Repair Stations . | . . . . Recycling Units . | . . . . Scanalyzers . | . . . . Garrison Access . | . . . . Data Cores Recovered . | . . . . Used . | . . . . Hacking Detections 2 | . 1 1 . Full Trace Events 1 | . 1 . . Feedback Events . | . . . . Feedback Blocked . | . . . . Robot Schematics Acquired . | . . . . Robots Built . | . . . . Authchips . | . . . . Time . | . . . . Total Robot Build Rating . | . . . . Part Schematics Acquired 1 | . 1 . . Parts Built . | . . . . Authchips . | . . . . Time . | . . . . Total Part Build Rating . | . . . . Parts Repaired . | . . . . Time . | . . . . Parts Recycled . | . . . . Recycled Matter . | . . . . Retrieved Matter . | . . . . Retrieved Components . | . . . . Parts Scanalyzed . | . . . . Part Schematics Acquired . | . . . . Parts Damaged . | . . . . Bothacking | -11 -10 -10 -10 ------------ Run | Yrd Mat Min Sub Used RIF Installer . | . . . . Robots Hacked . | . . . . Non-combat . | . . . . Combat . | . . . . Robot Hacks Applied . | . . . . Relay Couplers Released . | . . . . Fabnet Peak Effective % . | . . . . Robots Rewired . | . . . . Allies Hacked . | . . . . Hacks Repelled . | . . . . Allies | -11 -10 -10 -10 -------- Run | Yrd Mat Min Sub Total Allies 6 | . . 6 . Largest Group 4 | . . 4 2 Highest-Rated Group 50 | . . 50 26 Highest-Rated Ally 31 | . . 31 16 Total Orders . | . . . . Ally Attacks 59 | . . 46 13 Total Damage 508 | . . 427 81 Kills 5 | . . 5 . Allies Corrupted . | . . . . Allies Melted . | . . . . Intel | -11 -10 -10 -10 ------- Run | Yrd Mat Min Sub Robot Analysis Total . | . . . . Derelict Logs Recovered 2 | . . 2 . Drone Launches . | . . . . Drone Recoveries . | . . . . Exploration | -11 -10 -10 -10 ------------- Run | Yrd Mat Min Sub Turns Passed 3480 | 78 658 1153 1591 Spaces Moved 1581 | 43 270 526 742 Core 4 | 4 . . . Treads 122 | 2 120 . . Legs 1455 | 37 150 526 742 Wheels . | . . . . Hover . | . . . . Flight . | . . . . Fastest Speed 50 | 50 120 190 190 Average Speed 189 | 118 173 190 199 Slowest Speed 200 | 160 190 190 200 Overloaded Moves . | . . . . Propulsion Burnouts . | . . . . Robots Hopped . | . . . . Cave-ins Triggered . | . . . . Exploration Rate (%) 51 | 5 42 93 67 Regions Visited 3 Branch Regions 2 Pre-discovered Areas . | . . . . Known Exits Taken . | . . . . Unknown Exits Taken 3 | 1 1 1 . Scrap Searched 2 | . . 2 . Spaces Dug . | . . . . Terrain Destroyed 41 | . . 16 25 Melee . | . . . . Projectile 2 | . . 2 . AOE 39 | . . 14 25 Terrain Rammed . | . . . . Walls Destroyed . | . . . . Machines Disabled . | . . . . Actions | -11 -10 -10 -10 --------- Run | Yrd Mat Min Sub Total 1936 | 67 389 646 834 Wait 185 | 6 37 80 62 Move 1578 | 42 269 525 742 Hop . | . . . . Pick Up 33 | 6 19 3 5 Fast Attach 8 | 6 1 1 . Attach 5 | 1 3 1 . Detach 1 | 1 . . . Swap 25 | 3 8 9 5 Drop 33 | 2 14 8 9 Fire 67 | . 38 18 11 Melee . | . . . . Ram . | . . . . Kick 1 | . . 1 . Crush . | . . . . Escape Stasis . | . . . . Rewire . | . . . . Trap . | . . . . Miscellaneous . | . . . . Route ------- -11/Scrapyard -10/Materials (discovered 3 exits: [*Mat] / *Min x2) -10/Mines (discovered 3 exits: [*Mat x2] / *Sub) -10/Subcaves History --------- Turn | Location | Event 18 | -11/Scrapyard | Discovered new exit (range 15) 79 | -11/Scrapyard | Entered Materials 314 | -10/Materials | Build established: Mutant 375 | -10/Materials | Discovered new exit (range 15) 396 | -10/Materials | Discovered new exit (range 9) 634 | -10/Materials | Discovered new exit (range 15) 678 | -10/Materials | Core integrity fell below 50% 737 | -10/Materials | Entered Mines 992 | -10/Mines | Build established: Scavenger-Mutant 1006 | -10/Mines | Found a damaged Exp. Sensor Array with a note attached 1014 | -10/Mines | Found Prototype Device 1014 | -10/Mines | Identified Exp. Sensor Array 1031 | -10/Mines | Received a Mining Laser from a helpful Derelict 1036 | -10/Mines | Learned Materials trap positions 1041 | -10/Mines | Discovered new exit (range 9) 1136 | -10/Mines | Core integrity fell below 20% 1139 | -10/Mines | Discovered new exit (range 10) 1143 | -10/Mines | Found a hidden stash of uninstalled traps 1365 | -10/Mines | Found DCF Scrap (10 items) 1378 | -10/Mines | Assembled infested the area 1383 | -10/Mines | Assisted by a Guerilla fighting off Assembled 1402 | -10/Mines | Assisted by bots powering up and referring to "LRC-V3" 1678 | -10/Mines | Build established: Mutant 1818 | -10/Mines | Discovered new exit (range 12) 1890 | -10/Mines | Entered Subcaves 1890 | -10/Subcaves | Accompanied by 2 allies 1992 | -10/Subcaves | Ambushed by swarm of Subdwellers 2653 | -10/Subcaves | Shifting Twisted Machinery released Mak. Axe 2664 | -10/Subcaves | Shifting Twisted Machinery released Piercing Trap 2875 | -10/Subcaves | Visited Clippyterm 2881 | -10/Subcaves | Learned Research machine intel 3481 | -10/Subcaves | Destroyed by BC-KVJ(R) with Subdweller Machine Gun Last Messages --------------- the time it still manages to suggest unhelpful sample queries and responses. --DD-NU8 >>Record! "Procgen" It looks like you're analyzing machine distribution algorithms, I have access to useful relevant data. Data stored: Research machine intel. >>Record! "LRC-V1" It looks like you're REDACTED, I can suggest REDACTED and REDACTED. Also definitely avoid REDACTED. 02981_ Dropped Mak. Axe. 02981_ Acquired Mak. Sword. 03115_ L9-Q1O(h) destroyed. 03124_ Destroyed Sub. Monowheel. 03124_ CA-HZ0(R) destroyed. 03129_ Acquired 28 matter. 03161_ UA-A1V(R) destroyed. 03174_ Acquired 14 matter. 03241_ Subatomizers dissect the Sub. Monowheel. 03425_ F1-RCU(R) destroyed. 03436_ Acquired 2 matter. Map ----- +----------------------------------------------------+ | ?????????????????????????????????????????????????? | | ?????????????????????????????????????????????????? | | ?????????????????????????????????????????????????? | | ?????????????????????????????????????????????????? | | ?????????????????????????????????????????????????? | | ?????????????????????????????????????????????????? | | ?????????????????????????????????????????????????? | | ?????????????????????????????????????????????????? | | ?????????????????????????????????????????????????? | | ?????????????????????????????????????????????????? | | ?????????????????????????????????????????????????? | | ?????????????????????????????????????????????????? | | ?????????????????????????????????????????????????? | | ?????????????????????????????????????????????????? | | ?????????????????????????????????????????????????? | | ?????????????????????????????????????????????????? | | ?????????????????????????????????????????????????? | | ?????????????????????????????????????????????????? | | ???????????????????????????????????????????????? | | ??????????????????????????????????????????????? | | ##???????????????????????????????????????????????? | | ?????????????????????????????????????????????????? | | ????????????#####????????????????????????????????? | | ???????###### ##################???????????????? | | ??????## ## ## ## #???????????????? | | ?????## ### @ R#& #??????????????? | | ???### ###?# # # ###< <#??????????????? | | ??## ###?# ### ###??? "????????????????? | | ??# #### ##?## #?????& #??????????????? | | ??# # ## #??# ?????? #??????????????? | | ??# # ##? ?????#??????????????? | | #?# ## !& # #?# ??????????????????? | | ## ### ### ?????????????????? | | ### ######### ?????????????????? | | " #???????? ????????????????? | | """"""#??????????????????????????? | | # """""##??????????????????????????? | | ### " ""#???????????????????????????? | | ### #?###""""#???????????????????????????? | | ## ######???#"""##???????????????????????????? | | #?# #???????? "#?????????????????????????????? | | #??# ##???????????????????????????????????????? | | #??## ### ##??????????????????????????????????? | | #### #??????????????????????????????????? | | #??????????????????????????????????? | | ### " """"??????????????????????????????? | | ####?# "" ##"#"???????????????????????????????? | | #????# "" #???????????????????????????????????? | | ## #??????????????????????????????????? | | ## """#??????????????????????????????????? | +----------------------------------------------------+ Best States ------------- Heat Dissipation 25 Energy Generation 18 Energy Capacity 250 Matter Stores 300 Matter Capacity 300 Sight Range 16 Robot Scan Range 20 Terrain Scan Density 10 Power Shielding 33 Evasion (%) 55 Recoil Reduction 2 Item Schematics ----------------- Aluminum Leg | -10/Materials | Hacked Robot Schematics ------------------ None Fabricated ------------ Nothing Alien Tech Used ----------------- None Achievements -------------- None Challenges ------------ None Game ------ Seed ShrapnelScatterCharger Manual? 0 Play Time 00:30:50 Cumulative 24.4 hours Start 2024.09.08 @ 17:15:38 End 2024.09.08 @ 17:47:42 Sessions 1 Manual Loads 0 Difficulty Rogue Special Mode None Game No. 36 Rogue 36 Adventurer 0 Explorer 0 Win Type - Total 0 Types 0/0/0/0/0/0/0/0/0 Lore% 7 Gallery% 29 Achievement% 23 Wizard Run 0 Options --------- Layout 0 ASCII 0 Keyboard 0 Movement Mouse Keybinds 1 Fullscreen 1 Font 18/SmallcapsGlow Map View 76x50 Zoom Use 0% Tactical HUD 1 Map Filters NONE Filters NONE Steam 1 RUN: 6d4d974c-e9bd-4fb7-ada4-ab69f0da2e15